bitfinex/quotes_ETHUSD_20260207
["timestamp","ask_amount","ask_price","bid_price","bid_amount"]
[1770467432566,0.05438813,2070.3,2068.5,1.66441221]
[1770467432866,1.79630161,2070.2,2068.1,1.76681221]
[1770467433067,1.79630161,2070.2,2068.1,1.82120034]
[1770467433360,0.05438813,2070.1,2068.0,13.21471267]
[1770467433589,1.74191348,2070.4,2068.2,1.66441221]
[1770467433790,0.05438813,2069.9,2068.1,1.32147127]
[1770467433991,1.26226318,2069.8,2068.2,1.20878058]
[1770467434510,1.20781318,2069.9,2068.2,1.20878058]
[1770467434793,0.05438813,2069.2,2067.9,1.20894682]
[1770467435003,0.05438813,2069.2,2067.8,1.20899635]
[1770467435163,0.05438813,2069.7,2067.9,4.8357888]
[1770467435369,0.05438813,2069.4,2068.1,1.20879255]
[1770467435580,0.05438813,2069.4,2068.1,1.81320802]
[1770467435975,1.20813801,2069.3,2068.1,0.60441547]
[1770467436181,0.05438813,2069.1,2067.9,1.20890591]
[1770467436378,0.05438813,2069.1,2067.8,1.20896136]
[1770467436578,0.05438813,2069.1,2068.0,1.20889725]
[1770467436779,0.05438813,2068.8,2067.7,1.2090497]
[1770467436990,0.05438813,2068.8,2067.3,0.28737952]
[1770467437195,0.05438813,2068.8,2067.5,1.20918497]
[1770467437371,1.79064223,2068.9,2067.5,0.63337789]
[1770467437567,1.79064223,2068.9,2067.6,4.83650086]
[1770467437803,1.79064223,2068.9,2067.5,4.83672876]
[1770467438104,0.05438813,2068.5,2067.3,1.49666442]
[1770467438301,0.05438813,2068.5,2066.7,6.61608828]
[1770467438502,1.20813801,2069.3,2067.5,11.55030046]
[1770467438678,3.05316837,2069.3,2067.5,11.55030046]
[1770467438878,1.79064223,2069.3,2067.8,0.05438813]
[1770467439201,0.7082764,2069.8,2067.9,0.05438813]
[1770467439438,1.79064223,2071.4,2069.2,13.32786815]
[1770467439710,0.002,2070.7,2070.0,11.55030046]
[1770467440005,0.25234163,2071.0,2070.6,1.2073795]
[1770467440206,1.84503036,2072.1,2070.6,1.2073795]
[1770467440374,0.05438813,2071.5,2069.6,11.55030046]
[1770467440701,0.05438813,2071.1,2069.7,1.34302682]
[1770467440900,0.05438813,2070.8,2069.3,1.5]
[1770467441198,1.79064223,2071.2,2069.3,1.5]
[1770467441400,1.84503036,2072.4,2070.3,11.55030046]
[1770467441602,0.05438813,2072.4,2070.3,11.55030046]
[1770467441795,0.84203106,2072.4,2070.4,1.15503005]
[1770467441997,0.84203106,2072.4,2070.1,1.20763023]
[1770467441998,1.20673842,2071.7,2070.1,1.20763023]
[1770467442191,1.26112655,2071.7,2070.4,1.20749178]
[1770467442504,11.65270046,2072.5,2070.4,1.20749178]
[1770467442505,0.05438813,2073.0,2070.9,1.77756769]
[1770467442705,0.05438813,2072.4,2070.5,1.3]
[1770467442905,0.05438813,2072.4,2070.4,1.20749082]
[1770467442906,0.05438813,2072.1,2070.4,1.20749082]
[1770467443072,0.05438813,2071.8,2070.0,11.55030046]
[1770467443279,1.84503036,2071.8,2070.1,1.20763761]
[1770467443620,0.05438813,2070.9,2069.4,1.20807218]
[1770467443786,0.05438813,2070.2,2069.3,1.5]
[1770467443987,0.05438813,2070.1,2069.3,1.5]
[1770467444291,0.05438813,2070.1,2068.0,13.07630046]
[1770467444483,0.05438813,2070.0,2068.2,1.2087322]
[1770467444680,1.1716316,2067.8,2067.1,1.26381196]
[1770467444886,1.79064223,2069.4,2067.7,0.05438813]
[1770467445189,1.79064223,2070.0,2067.8,11.55030046]
[1770467445492,12.75773827,2070.5,2067.5,1.83195582]
[1770467445493,1.84503036,2069.9,2067.5,1.83195582]
[1770467445698,0.05438813,2069.6,2067.5,13.32786815]
[1770467445892,0.05438813,2069.6,2067.6,1.33278682]
[1770467446088,1.20802126,2069.5,2067.7,1.20907288]
[1770467446291,0.05438813,2069.3,2067.7,1.20907288]
[1770467446687,0.05438813,2069.0,2067.7,1.20907288]
[1770467446976,0.05438813,2068.7,2066.7,11.55030046]
[1770467447176,1.79064223,2068.9,2067.3,1.20927034]
[1770467447403,1.84503036,2068.7,2067.1,1.20939468]
[1770467447610,0.69196983,2069.3,2067.6,1.20912621]
[1770467447785,0.69196983,2069.3,2066.9,1.83195582]
[1770467447786,0.05438813,2069.0,2067.4,1.20923217]
[1770467447988,0.05438813,2068.9,2067.5,1.20918981]
[1770467448188,0.05438813,2068.8,2067.4,1.20921074]
[1770467448514,0.05438813,2068.8,2067.3,1.20928402]
[1770467449022,1.21029052,2069.1,2067.3,1.81410155]
[1770467449232,1.84503036,2068.9,2067.2,0.001]
[1770467449413,1.84503036,2068.6,2067.2,0.001]
[1770467450090,1.20878058,2068.2,2067.2,0.001]
[1770467450287,11.60468859,2067.3,2066.1,0.001]
[1770467450590,0.05438813,2066.6,2064.6,0.001]
[1770467450788,0.05438813,2066.6,2064.7,1.21082966]
[1770467450789,0.05438813,2066.0,2064.7,1.21082966]
[1770467451105,0.1024,2066.8,2064.7,1.21082966]
[1770467451106,1.79064223,2066.5,2064.7,1.26521779]
[1770467451302,1.84503036,2066.1,2064.6,0.001]
[1770467451502,0.05438813,2065.8,2064.6,0.001]
[1770467451817,0.05438813,2066.0,2064.6,0.001]
[1770467451983,1.79064223,2066.3,2064.6,1.21186245]
[1770467452324,0.05438813,2066.7,2064.6,0.05538813]
[1770467452511,0.30546558,2066.7,2065.0,0.05438813]
[1770467452811,1.90129511,2067.3,2065.3,11.60468859]
[1770467452980,0.05438813,2067.2,2065.3,11.55030046]
[1770467453181,0.05438813,2067.2,2064.6,1.64592418]
[1770467453182,0.05438813,2066.6,2064.6,1.64592418]
[1770467453412,0.74635796,2066.9,2064.6,1.64592418]
[1770467453716,0.05438813,2066.3,2064.6,1.64592418]
[1770467453912,1.84503036,2066.6,2064.6,1.64592418]
[1770467454213,0.05438813,2065.7,2064.6,0.001]
[1770467454720,1.84503036,2065.1,2063.8,0.001]
[1770467455009,0.05438813,2064.8,2063.8,0.001]
[1770467455231,1.79064223,2065.1,2063.9,1.21127763]
[1770467455384,0.05438813,2064.9,2063.8,0.001]
[1770467455784,1.79064223,2065.1,2063.8,1.21235207]
[1770467456008,0.05438813,2065.6,2063.8,0.60682347]
[1770467456218,0.05438813,2065.3,2063.8,0.001]
[1770467456517,1.84503036,2065.0,2063.8,0.001]
[1770467456818,1.84503036,2065.5,2063.8,0.001]
[1770467457113,1.79064223,2065.5,2063.8,0.001]
[1770467457312,1.2102435,2065.7,2063.8,11.55130046]
[1770467457516,0.05438813,2065.8,2063.9,1.20951818]
[1770467457815,0.05438813,2065.7,2063.9,1.15513005]
[1770467458216,1.21030209,2065.6,2064.0,1.21124031]
[1770467458420,1.26465685,2065.7,2064.0,1.21124031]
[1770467459736,3.05529908,2065.7,2064.0,1.21124031]
[1770467459917,0.78961025,2065.6,2064.1,0.72113316]
[1770467460120,0.05438813,2065.4,2063.9,2.36641942]
[1770467460326,1.21047789,2065.3,2063.8,0.001]
[1770467460634,1.79064223,2065.2,2063.8,0.001]
[1770467461007,0.05438813,2065.1,2063.8,0.001]
[1770467461826,0.05438813,2065.1,2064.2,0.001]
[1770467462349,1.21059512,2065.1,2064.2,0.001]
[1770467462538,1.21047789,2065.3,2064.2,0.001]
[1770467462743,0.78961025,2065.6,2064.3,1.77756769]
[1770467462913,0.002,2066.3,2065.3,11.55030046]
[1770467463115,0.05438813,2066.2,2064.8,11.55030046]
[1770467463315,0.05438813,2066.2,2064.4,11.55030046]
[1770467463627,0.05438813,2065.9,2064.2,0.001]
[1770467463826,1.84503036,2066.2,2064.2,0.001]
[1770467464031,0.30569632,2066.1,2064.2,0.001]
[1770467464420,0.30569632,2066.1,2064.4,11.55030046]
[1770467464617,0.002,2066.5,2064.9,1.77756769]
[1770467464816,0.002,2066.5,2065.7,11.55030046]
[1770467465034,0.05438813,2068.0,2066.1,11.55030046]
[1770467465234,1.26311026,2068.3,2066.1,11.55030046]
[1770467465433,0.05438813,2068.0,2066.1,11.55030046]
[1770467465635,0.05438813,2068.0,2066.2,1.15503005]
[1770467465837,4.83488855,2068.5,2066.2,1.15503005]
[1770467465838,1.20831319,2069.0,2067.3,11.55030046]
[1770467466044,4.83525277,2069.1,2067.6,0.05438813]
[1770467466045,0.002,2069.1,2067.6,0.05438813]
[1770467466346,0.002,2069.1,2067.4,11.55030046]
[1770467466545,0.002,2069.1,2067.5,1.27596073]
[1770467466715,0.05438813,2069.0,2067.5,1.27596073]
[1770467466915,0.05438813,2069.0,2067.3,1.20930682]
[1770467467113,0.002,2069.1,2067.5,1.68370383]
[1770467467343,0.002,2069.1,2067.3,1.20930682]
[1770467467513,0.002,2069.1,2067.9,11.49495051]
[1770467467719,0.002,2069.1,2068.3,11.49495051]
[1770467467915,0.002,2069.1,2068.4,1.14949505]
[1770467468114,0.002,2069.1,2068.3,11.49495051]
[1770467468326,0.002,2069.1,2068.5,1.20860526]
[1770467468753,0.003,2070.1,2069.0,11.49495051]
[1770467468915,0.003,2070.1,2068.8,13.17865434]
[1770467469118,0.003,2070.1,2069.3,1.68370383]
[1770467469331,0.003,2070.1,2069.6,11.49495051]
[1770467469527,0.003,2070.1,2069.4,1.32330425]
[1770467469736,0.003,2070.1,2068.9,1.73809196]
[1770467470251,0.003,2070.1,2068.5,1.20860526]
[1770467470551,0.05438813,2070.0,2068.5,1.20860526]
[1770467470756,0.05438813,2069.9,2068.4,1.20864916]
[1770467471042,0.05438813,2069.6,2067.4,11.49495051]
[1770467471254,0.05438813,2069.2,2067.5,1.14949505]
[1770467471466,0.05438813,2068.9,2066.8,4.8382425]
[1770467471624,0.05438813,2068.6,2067.4,1.20924179]
[1770467471824,0.05438813,2068.5,2066.5,1.526]
[1770467472160,0.05438813,2069.0,2067.1,11.49495051]
[1770467472374,1.20860526,2068.5,2066.8,1.20959938]
[1770467472534,0.60974145,2068.4,2066.9,1.93717604]
[1770467472935,0.66412958,2068.4,2066.9,1.93717604]
[1770467473256,1.26233028,2069.7,2067.8,11.49495051]
[1770467473552,0.05438813,2070.5,2068.3,0.05438813]
[1770467473728,1.20753279,2070.4,2068.3,0.05438813]
[1770467473930,1.20744914,2070.5,2068.6,11.49495051]
[1770467474158,1.81168426,2070.8,2068.6,11.49495051]
[1770467474330,1.20744272,2070.5,2068.7,0.05438813]
[1770467474530,0.05438813,2070.0,2068.1,6.66405268]
[1770467474719,0.05438813,2070.0,2068.6,1.20853442]
[1770467474920,0.05438813,2070.0,2068.5,1.2085903]
[1770467475131,0.05438813,2069.9,2068.2,0.66640527]
[1770467475335,0.05438813,2069.9,2068.5,1.20860316]
[1770467475520,0.05438813,2069.9,2068.5,1.20857344]
[1770467475521,0.003,2069.8,2068.5,1.20857344]
[1770467475729,0.003,2069.8,2068.5,1.20857576]
[1770467476061,0.003,2069.8,2067.8,1.82881296]
[1770467476234,4.88371128,2070.7,2068.8,11.49495051]
[1770467476426,0.005,2070.1,2069.0,1.20831319]
[1770467476628,0.005,2070.1,2069.2,11.49495051]
[1770467476927,0.002,2071.0,2069.3,0.05438813]
[1770467477631,0.002,2071.0,2070.1,0.05438813]
[1770467478158,0.002,2071.0,2069.6,11.49495051]
[1770467478356,0.002,2071.0,2069.7,1.14949505]
[1770467478529,0.002,2071.0,2069.3,1.20813801]
[1770467478730,0.05438813,2070.9,2069.2,1.20816007]
[1770467478932,0.05438813,2070.3,2068.9,1.20831498]
[1770467479238,1.20704533,2071.2,2068.9,11.49495051]
[1770467479438,0.05438813,2070.8,2069.2,1.20815641]
[1770467479663,1.20704533,2071.2,2069.2,1.20815641]
[1770467479664,1.20704533,2071.2,2069.3,0.60953302]
[1770467480157,1.26143346,2071.2,2069.3,0.60953302]
[1770467480362,0.05438813,2070.9,2069.3,0.60953302]
[1770467480538,1.20726289,2070.8,2069.3,1.81761299]
[1770467480942,0.05438813,2070.2,2068.2,4.83505543]
[1770467481262,0.05438813,2070.2,2069.3,1.20812562]
[1770467481434,0.05438813,2069.9,2068.3,1.20868099]
[1770467481631,0.05438813,2070.0,2068.8,1.20839006]
[1770467481830,0.05438813,2070.0,2068.7,1.20848251]
[1770467482162,1.81168426,2070.2,2068.2,0.05438813]
[1770467482456,0.05438813,2070.1,2068.2,1.63846513]
[1770467482645,0.05438813,2069.8,2068.0,1.20889748]
[1770467482849,0.05438813,2070.0,2068.0,1.20889748]
[1770467483159,1.26211759,2070.0,2068.1,0.05438813]
[1770467483331,1.26211759,2070.0,2068.0,1.20889748]
[1770467483332,0.05438813,2069.6,2068.0,1.20889748]
[1770467484447,0.05438813,2069.3,2067.9,1.20892732]
[1770467484650,1.2081964,2069.2,2067.5,4.8366681]
[1770467484856,1.2081964,2069.2,2067.6,0.60459164]
[1770467485068,0.05438813,2069.0,2067.6,0.60459164]
[1770467485245,0.1024,2069.8,2067.7,0.05438813]
[1770467485453,0.1024,2069.8,2067.6,11.49495051]
[1770467485454,1.26229265,2069.7,2067.6,11.49495051]
[1770467485761,1.26229265,2069.7,2067.4,1.20924833]
[1770467485762,0.05438813,2069.4,2067.4,1.20924833]
[1770467485960,0.05438813,2069.4,2067.3,1.20926853]
[1770467485961,0.05438813,2068.8,2067.3,1.20926853]
[1770467486188,0.05438813,2068.8,2067.3,1.03843384]
[1770467486344,0.05438813,2068.5,2067.4,0.58758844]
[1770467486547,0.05438813,2068.8,2067.4,0.58758844]
[1770467486746,1.20848842,2068.7,2067.4,0.58758844]
[1770467486983,1.20848842,2068.7,2067.2,1.20932823]
[1770467487302,0.05438813,2068.5,2066.7,0.001]
[1770467487578,0.05438813,2068.5,2067.1,1.20938747]
[1770467487781,0.05438813,2068.2,2066.8,1.20958446]
[1770467487998,1.20932199,2068.2,2066.9,1.20951003]
[1770467488271,0.05438813,2068.2,2067.1,1.20941509]
[1770467488477,1.86607239,2068.5,2067.8,0.001]
[1770467488646,1.86607239,2068.5,2067.2,1.20936339]
[1770467488851,1.86607239,2068.5,2066.7,0.001]
[1770467488852,1.2086637,2068.4,2066.9,11.49495051]
[1770467489045,1.2086637,2068.4,2067.5,0.001]
[1770467489272,0.60431934,2068.3,2067.5,0.001]
[1770467489948,0.60431934,2068.3,2066.7,0.001]
[1770467490147,0.60431934,2068.3,2066.9,11.49495051]
[1770467490343,0.60431934,2068.3,2066.7,0.001]
[1770467490960,0.60431934,2068.3,2066.9,11.54933864]
[1770467491166,4.83349756,2068.9,2066.9,11.54933864]
[1770467491554,4.83349756,2068.9,2067.0,0.05438813]
[1770467491773,4.83349756,2068.9,2066.9,11.49495051]
[1770467491974,4.83349756,2068.9,2067.0,0.05438813]
[1770467492280,0.60962573,2068.8,2067.0,1.20932199]
[1770467492859,1.20848842,2068.7,2067.1,1.20942383]
[1770467493580,0.05438813,2068.4,2067.0,1.15493386]
[1770467493783,1.20848842,2068.7,2067.1,1.20942383]
[1770467494013,1.20848842,2068.7,2066.7,0.001]
[1770467494014,0.05438813,2068.5,2066.7,0.001]
[1770467494156,0.05438813,2068.5,2067.0,1.20946449]
[1770467494346,0.05438813,2068.5,2067.0,1.20944781]
[1770467494561,0.36184421,2068.5,2067.1,0.60475594]
[1770467494755,0.05438813,2068.2,2066.7,0.001]
[1770467494976,0.05438813,2067.9,2066.7,0.001]
[1770467495577,0.05438813,2067.6,2066.7,0.001]
[1770467496083,0.05438813,2067.0,2065.3,4.84182616]
[1770467496270,0.05438813,2066.7,2064.8,1.73199029]
[1770467496475,1.81061117,2067.0,2064.8,0.05438813]
[1770467496681,0.05438813,2066.7,2065.4,1.21041631]
[1770467496856,0.05438813,2066.7,2065.3,1.21043722]
[1770467497052,1.20971644,2066.6,2064.9,4.84280151]
[1770467497253,0.61029703,2066.5,2064.9,4.84280151]
[1770467497562,1.81061117,2067.0,2064.9,4.84280151]
[1770467497563,0.05438813,2067.3,2065.0,1.88877842]
[1770467497782,0.05438813,2067.5,2065.6,11.49595051]
[1770467497981,0.05438813,2067.5,2065.6,0.001]
[1770467498357,1.81061117,2067.2,2065.6,0.001]
[1770467498568,1.75622304,2067.2,2065.6,0.001]
[1770467498882,0.05438813,2066.7,2065.6,0.001]
[1770467499069,1.20942383,2067.1,2065.6,0.001]
[1770467499273,4.83646349,2067.7,2065.6,0.001]
[1770467499457,0.05438813,2067.5,2065.6,0.001]
[1770467500161,0.05438813,2067.5,2065.6,0.05538813]
[1770467500556,4.83646349,2067.7,2065.6,0.001]
[1770467500884,0.05438813,2067.5,2065.6,0.001]
[1770467501212,1.20942383,2067.1,2065.7,1.2102435]
[1770467501781,1.20942383,2067.1,2065.8,0.001]
[1770467503869,0.05438813,2066.9,2065.8,0.001]
[1770467504266,0.002,2067.3,2066.3,11.49495051]
[1770467504577,0.002,2067.3,2066.4,1.14949505]
[1770467505095,0.002,2067.5,2066.4,2.93587347]
[1770467505297,0.002,2067.5,2066.7,0.05438813]
[1770467505498,0.16790099,2067.9,2067.5,11.49495051]
[1770467505797,1.20813801,2069.3,2067.3,0.05438813]
[1770467505983,0.77969131,2069.2,2067.3,3.11451131]
[1770467506169,0.77969131,2069.2,2067.5,11.49495051]
[1770467506493,0.77969131,2069.2,2067.6,0.05438813]
[1770467506700,0.77969131,2069.2,2067.3,3.11451131]
[1770467506902,0.83407944,2069.2,2067.3,3.06012318]
[1770467507068,0.83407944,2069.2,2067.4,0.31145113]
[1770467507271,1.20825479,2069.1,2067.5,1.20918984]
[1770467507477,0.05438813,2068.9,2067.5,1.20918984]
[1770467507801,0.05438813,2068.6,2067.4,1.20923887]
[1770467507979,1.20825479,2069.1,2067.4,1.20923887]
[1770467508300,0.05438813,2068.0,2066.6,4.83886199]
[1770467508470,1.75622304,2068.2,2066.4,1.14949505]
[1770467508669,0.05438813,2068.1,2066.9,1.20949908]
[1770467508900,0.05438813,2068.1,2066.1,4.84000098]
[1770467509204,1.81061117,2068.6,2067.1,1.20938084]
[1770467509500,0.05438813,2068.0,2066.4,1.20983352]
[1770467510200,2.9648283,2068.5,2066.5,0.05438813]
[1770467510501,0.05438813,2068.3,2066.6,11.49495051]
[1770467510700,0.78536375,2068.4,2066.5,0.78356953]
[1770467510876,0.78536375,2068.4,2066.7,11.54933864]
[1770467511071,0.78536375,2068.4,2066.7,0.05438813]
[1770467511382,1.20872213,2068.3,2066.8,1.20959938]
[1770467511583,1.89161029,2068.3,2066.9,0.6102385]
[1770467511789,4.88798248,2068.9,2067.0,0.05438813]
[1770467511968,1.20843,2068.8,2067.0,0.05438813]
[1770467512165,1.20843,2068.8,2066.9,0.6102385]
[1770467512394,1.20843,2068.8,2067.0,11.54933864]
[1770467512802,1.20841005,2068.9,2067.3,0.05438813]
[1770467512984,0.84800292,2068.9,2067.1,0.05438813]
[1770467513187,1.89042292,2069.0,2067.1,1.78637842]
[1770467513516,1.20860526,2068.5,2067.0,1.20948234]
[1770467513883,0.05438813,2068.3,2067.0,1.20948234]
[1770467514211,0.05438813,2068.3,2066.9,1.20953518]
[1770467514500,0.05438813,2068.0,2066.8,1.20955592]
[1770467514704,0.05438813,2067.7,2065.7,11.49495051]
[1770467514912,0.05438813,2067.8,2065.6,0.001]
[1770467515109,0.05438813,2067.5,2066.2,1.20991017]
[1770467515281,1.81061117,2067.8,2065.9,4.84048255]
[1770467515482,1.20907288,2067.7,2066.1,1.21000919]
[1770467515683,0.05438813,2067.5,2066.0,1.69418088]
[1770467515921,0.05438813,2067.2,2065.9,1.21008663]
[1770467516230,0.05438813,2067.2,2065.8,4.84153071]
[1770467516231,0.05438813,2067.2,2066.6,0.001]
[1770467516921,0.05438813,2066.9,2066.6,0.001]
[1770467517295,0.05438813,2066.9,2065.8,0.001]
[1770467517482,1.20959938,2066.8,2065.8,0.001]
[1770467517809,0.05438813,2066.6,2065.8,0.001]
[1770467518185,1.81061117,2066.6,2065.8,0.001]
[1770467518381,0.6102385,2066.7,2065.8,0.001]
[1770467518999,0.05438813,2066.5,2065.8,0.001]
[1770467519226,6.59321636,2067.6,2065.8,0.001]
[1770467519515,0.05438813,2067.2,2065.8,0.001]
[1770467519712,1.20924833,2067.4,2065.8,0.001]
[1770467519915,0.05438813,2067.2,2065.8,0.001]
[1770467520708,1.20924833,2067.4,2065.8,0.001]
[1770467521017,1.20883903,2068.1,2066.3,11.49495051]
[1770467521199,0.48374297,2068.0,2066.4,1.20388318]
[1770467521399,0.48374297,2068.0,2066.4,11.49495051]
[1770467521601,1.69268011,2068.0,2066.5,1.20977498]
[1770467522136,1.69268011,2068.0,2066.2,4.83909992]
[1770467522137,0.05438813,2067.7,2066.2,4.83971078]
[1770467522294,3.44890315,2068.0,2066.4,1.20980668]
[1770467522486,0.05438813,2067.5,2066.4,1.20980668]
[1770467522693,0.83388812,2067.9,2066.4,1.20983281]
[1770467523434,2.59011116,2067.9,2065.7,4.84074766]
[1770467523593,1.20901441,2067.8,2066.2,1.73199029]
[1770467523793,0.68789602,2067.7,2066.3,1.32269408]
[1770467523988,1.20901441,2067.8,2066.3,1.32269408]
[1770467524600,0.002,2068.4,2067.0,11.54933864]
[1770467524803,0.002,2068.4,2067.4,13.2269408]
[1770467525006,1.20806277,2069.5,2068.0,0.05438813]
[1770467525193,1.20806277,2069.5,2067.6,0.05438813]
[1770467525194,1.20806277,2069.5,2067.8,11.49495051]
[1770467525393,0.05438813,2069.3,2067.9,1.14949505]
[1770467525618,1.2081964,2069.2,2067.5,1.20918984]
[1770467525946,0.05438813,2068.7,2067.5,1.20918984]
[1770467526126,0.05438813,2068.7,2067.4,1.20922397]
[1770467526334,0.05438813,2068.9,2067.4,1.20922397]
[1770467526530,1.2081964,2069.2,2067.4,3.01151767]
[1770467526821,1.84479052,2069.4,2067.7,11.49495051]
[1770467527034,1.20808932,2069.4,2067.7,11.49495051]
[1770467527204,1.20808932,2069.4,2067.5,3.74207866]
[1770467527405,0.05438813,2069.3,2067.5,3.74207866]
[1770467527722,0.05438813,2069.0,2067.6,1.20913136]
[1770467528603,1.2081964,2069.2,2067.6,1.20913136]
[1770467528816,0.60953701,2069.1,2067.7,0.79854418]
[1770467529126,0.05438813,2068.4,2067.5,1.93978496]
[1770467529329,0.05438813,2068.4,2066.9,1.20950011]
[1770467529330,0.05438813,2068.1,2066.9,1.20950011]
[1770467529528,0.05438813,2068.1,2066.4,1.20983352]
[1770467529529,1.20913136,2067.6,2066.4,1.20983352]
[1770467529700,1.20913136,2067.6,2066.9,0.001]
[1770467529904,4.88927668,2068.4,2066.9,0.001]
[1770467530205,0.05438813,2067.5,2066.9,0.001]
[1770467530631,0.05438813,2067.2,2066.6,0.001]
[1770467531036,0.05438813,2066.9,2065.6,0.001]
[1770467531333,0.05438813,2066.7,2065.6,0.001]
[1770467531632,1.20971644,2066.6,2065.6,0.001]
[1770467531829,0.61029703,2066.5,2065.6,0.001]
[1770467532132,0.05438813,2066.4,2065.6,0.001]
[1770467532503,4.89220124,2067.1,2065.6,0.001]
[1770467532838,1.2092288,2067.5,2065.6,11.49687334]
[1770467533016,0.05438813,2067.6,2065.6,11.49687334]
[1770467533201,1.20895594,2067.9,2065.8,1.73190389]
[1770467533398,0.60991679,2067.8,2066.3,11.49587334]
[1770467533608,4.83536083,2068.1,2066.4,1.20983352]
[1770467533805,4.83558994,2068.2,2066.4,1.20983352]
[1770467534423,0.05438813,2067.7,2066.4,1.20983352]
[1770467534800,4.83509607,2068.4,2066.4,1.20983352]
[1770467534801,0.1044,2068.7,2066.5,1.73090389]
[1770467535131,0.05438813,2068.6,2066.9,1.73090389]
[1770467535343,0.6098851,2068.6,2067.0,1.32267772]
[1770467535511,0.002,2068.7,2067.1,13.22677723]
[1770467535833,0.002,2068.7,2067.2,1.20936532]
[1770467536918,0.002,2068.7,2067.5,13.22677723]
[1770467537320,0.002,2068.7,2067.7,0.05438813]
[1770467537500,0.002,2068.7,2067.7,1.78529202]
[1770467537834,0.32686417,2069.6,2068.0,1.26328561]
[1770467538039,2.17166354,2069.6,2068.1,1.75947489]
[1770467538406,2.17166354,2069.6,2068.0,1.20889748]
[1770467538603,0.32686417,2069.6,2068.1,1.73090389]
[1770467539107,0.32686417,2069.6,2068.0,12.75915895]
[1770467539108,1.53483234,2069.6,2068.0,1.26328561]
[1770467539308,1.53483267,2069.6,2068.0,1.26328561]
[1770467539540,0.32686417,2069.6,2068.2,11.49587334]
[1770467539833,0.32686417,2069.6,2068.3,1.20872213]
[1770467540007,1.53483933,2069.6,2068.4,1.7539484]
[1770467540206,1.53483124,2069.6,2068.4,1.7539484]
[1770467540533,0.32686417,2069.6,2068.4,1.7539484]
[1770467540746,1.53482987,2069.6,2068.4,1.7539484]
[1770467541037,1.53482987,2069.6,2068.3,1.20872213]
[1770467541213,0.05438813,2069.1,2067.3,4.83718015]
[1770467541416,0.05438813,2069.1,2067.9,1.20895168]
[1770467541610,1.20848842,2068.7,2067.3,4.83709606]
[1770467541843,6.56569035,2069.3,2067.4,0.77773068]
[1770467542138,1.20802126,2069.5,2067.7,1.73090389]
[1770467542507,0.002,2068.7,2067.7,1.73090389]
[1770467543139,0.002,2068.7,2067.6,11.49687334]
[1770467543310,0.002,2068.7,2067.6,0.001]
[1770467544110,0.05438813,2068.6,2067.6,0.001]
[1770467545051,0.002,2068.7,2067.6,0.001]
[1770467545657,0.002,2068.7,2067.7,1.20907288]
[1770467545950,0.002,2068.7,2067.8,1.92731416]
[1770467547152,0.002,2068.7,2067.8,1.98170229]
[1770467547345,0.002,2068.7,2068.0,11.49587334]
[1770467547655,0.002,2068.9,2068.1,1.20883903]
[1770467548027,0.002,2068.9,2068.1,2.99413105]
[1770467548347,0.32686417,2069.6,2068.8,11.55026147]
[1770467548549,1.20685493,2071.5,2069.2,11.49587334]
[1770467548721,0.05438813,2071.0,2069.2,11.49587334]
[1770467548921,0.05438813,2071.0,2068.8,11.49587334]
[1770467548922,1.78741736,2070.7,2068.8,11.49587334]
[1770467549146,1.73302923,2070.7,2068.9,1.14958733]
[1770467549357,1.78741736,2070.6,2068.4,11.49587334]
[1770467549550,0.05438813,2070.2,2068.4,11.49587334]
[1770467549719,1.20767112,2070.1,2068.3,1.20872213]
[1770467549922,0.05438813,2069.9,2068.3,1.20872213]
[1770467550123,0.05438813,2069.9,2067.8,1.98170229]
[1770467550124,0.05438813,2069.6,2067.8,13.4231875]
[1770467550362,1.78741736,2069.6,2068.2,1.20876925]
[1770467551220,1.73302923,2069.6,2068.2,1.20876925]
[1770467552053,1.26240939,2069.5,2068.0,4.83512232]
[1770467552651,1.78741736,2069.2,2067.6,0.001]
[1770467552850,1.78741736,2069.2,2067.6,1.21009938]
[1770467552851,0.05438813,2068.9,2067.6,1.21009938]
[1770467553078,0.05438813,2068.9,2067.7,1.20905896]
[1770467553275,0.05438813,2068.6,2067.6,0.001]
[1770467553858,1.20860526,2068.5,2067.6,0.001]
[1770467554053,0.60974145,2068.4,2067.6,0.001]
[1770467554461,0.05438813,2068.3,2067.6,0.001]
[1770467554662,0.05438813,2068.3,2066.8,4.83828569]
[1770467554663,0.05438813,2068.0,2066.6,4.42320771]
[1770467554863,0.05438813,2067.6,2066.6,1.20968097]
[1770467555057,1.78741736,2068.0,2067.0,1.20946947]
[1770467555257,1.78741736,2068.0,2066.7,1.20962313]
[1770467555490,1.78741736,2067.7,2066.3,4.83950876]
[1770467555797,1.78741736,2068.3,2067.0,1.209467]
[1770467556082,0.60974145,2068.4,2066.7,4.83858614]
[1770467556327,1.7083799,2068.8,2068.0,0.001]
[1770467556454,0.05438813,2068.9,2068.0,0.001]
[1770467556655,11.49587334,2068.1,2067.1,0.001]
[1770467556883,0.05438813,2067.4,2065.8,0.001]
[1770467557081,0.05438813,2066.7,2065.8,0.001]
[1770467557259,0.05438813,2066.7,2066.0,1.21005901]
[1770467557588,0.05438813,2067.0,2066.0,1.21002964]
[1770467557753,0.05438813,2067.4,2066.3,1.20985431]
[1770467557953,0.05438813,2067.4,2065.8,0.001]
[1770467557954,0.05438813,2067.1,2065.8,0.001]
[1770467558797,1.26364765,2067.4,2065.9,11.49587334]
[1770467558982,0.97288427,2067.3,2065.8,0.001]
[1770467560168,1.20928934,2067.4,2065.8,0.001]
[1770467560395,0.05438813,2067.1,2065.8,0.001]
[1770467560580,1.26367747,2067.4,2065.8,0.001]
[1770467561383,0.05438813,2067.4,2065.8,0.001]
[1770467562090,1.20928641,2067.4,2065.8,0.001]
[1770467562297,0.60460518,2067.3,2065.8,0.001]
[1770467562502,1.20928641,2067.4,2065.8,0.001]
[1770467563199,1.20913136,2067.6,2065.8,0.001]
[1770467563900,0.05438813,2067.1,2065.8,0.001]
[1770467564103,1.20948234,2067.0,2065.8,0.001]
[1770467564406,0.05438813,2066.8,2065.8,0.001]
[1770467564812,0.05438813,2066.5,2065.8,0.001]
[1770467565891,0.05438813,2066.2,2065.6,0.001]
[1770467566096,1.21000919,2066.1,2065.6,0.001]
[1770467566292,0.61044341,2066.0,2064.7,0.001]
[1770467566510,0.05438813,2065.9,2064.7,0.001]
[1770467566680,0.61044341,2066.0,2064.7,0.001]
[1770467567013,1.20983352,2066.4,2064.7,11.49687334]
[1770467567310,0.05438813,2066.2,2064.7,0.001]
[1770467567509,0.05438813,2065.9,2064.7,0.001]
[1770467568099,1.21018491,2065.8,2064.7,0.001]